[Event "*** Titled Tuesday Blitz"]
[Site "Chess.com"]
[Date "2020.11.24"]
[Round "6"]
[White "jacky72"]
[Black "Gerodot71"]
[Result "1/2-1/2"]
[WhiteElo "2688"]
[BlackElo "2473"]
[TimeControl "180+1"]
[EndTime "11:22:59 PST"]
[Termination "Game drawn by repetition"]

1. d4 {[%clk 0:03:00.9]} 1... Nf6 {[%clk 0:02:59.9]} 2. c4 {[%clk 0:03:01.1]}
2... e6 {[%clk 0:03:00.1]} 3. Nf3 {[%clk 0:03:01.3]} 3... d5 {[%clk 0:02:59.8]}
4. Nc3 {[%clk 0:03:01.7]} 4... Bb4 {[%clk 0:02:59.6]} 5. cxd5 {[%clk 0:03:01.8]}
5... exd5 {[%clk 0:02:59.6]} 6. Bg5 {[%clk 0:03:02.3]} 6... h6 {[%clk
0:02:58.1]} 7. Bh4 {[%clk 0:03:02.4]} 7... O-O {[%clk 0:02:51.8]} 8. e3 {[%clk
0:03:02]} 8... c5 {[%clk 0:02:50.8]} 9. Bd3 {[%clk 0:03:01.2]} 9... Nc6 {[%clk
0:02:49.5]} 10. O-O {[%clk 0:02:57.6]} 10... Bg4 {[%clk 0:02:46.1]} 11. h3
{[%clk 0:02:52.6]} 11... Bh5 {[%clk 0:02:36.3]} 12. dxc5 {[%clk 0:02:46.4]}
12... Bxc5 {[%clk 0:02:33.2]} 13. Be2 {[%clk 0:02:45.8]} 13... Bb6 {[%clk
0:02:13.6]} 14. Bxf6 {[%clk 0:02:44.4]} 14... Qxf6 {[%clk 0:02:14.5]} 15. Qxd5
{[%clk 0:02:44.4]} 15... Bg6 {[%clk 0:02:10.9]} 16. Rad1 {[%clk 0:02:44.8]}
16... Rad8 {[%clk 0:02:05.7]} 17. Qb5 {[%clk 0:02:45.3]} 17... Ne7 {[%clk
0:01:20]} 18. Rxd8 {[%clk 0:02:41.8]} 18... Rxd8 {[%clk 0:01:20.9]} 19. Rd1
{[%clk 0:02:42.3]} 19... Rxd1+ {[%clk 0:01:16.6]} 20. Bxd1 {[%clk 0:02:43.2]}
20... Qd6 {[%clk 0:01:12.6]} 21. Bb3 {[%clk 0:02:42.7]} 21... Kh7 {[%clk
0:01:00.8]} 22. Ne5 {[%clk 0:02:27]} 22... Qf6 {[%clk 0:00:49.2]} 23. Nd7 {[%clk
0:02:20.2]} 23... Qd6 {[%clk 0:00:43.6]} 24. Nf8+ {[%clk 0:02:20.4]} 24... Kg8
{[%clk 0:00:41]} 25. Qe8 {[%clk 0:02:21.3]} 25... Qd8 {[%clk 0:00:30.1]} 26.
Qxd8 {[%clk 0:02:12.7]} 26... Bxd8 {[%clk 0:00:31]} 27. Nd7 {[%clk 0:02:13.4]}
27... Nc6 {[%clk 0:00:24.2]} 28. Nd5 {[%clk 0:02:06.7]} 28... Bf5 {[%clk
0:00:23.4]} 29. Nc5 {[%clk 0:02:06.6]} 29... Bc8 {[%clk 0:00:23.4]} 30. Ne4
{[%clk 0:02:03.1]} 30... Ne7 {[%clk 0:00:16.1]} 31. Nd6 {[%clk 0:02:01]} 31...
Be6 {[%clk 0:00:14.3]} 32. Nxe7+ {[%clk 0:01:59.7]} 32... Bxe7 {[%clk
0:00:15.2]} 33. Bxe6 {[%clk 0:02:00.2]} 33... Bxd6 {[%clk 0:00:15.2]} 34. Bd5
{[%clk 0:02:00.6]} 34... b6 {[%clk 0:00:15.4]} 35. f4 {[%clk 0:02:01.1]} 35...
Kf8 {[%clk 0:00:15.7]} 36. Kf2 {[%clk 0:02:00.7]} 36... Ke7 {[%clk 0:00:16.2]}
37. Kf3 {[%clk 0:02:01.2]} 37... f5 {[%clk 0:00:15.5]} 38. g4 {[%clk 0:02:01.4]}
38... g6 {[%clk 0:00:14.4]} 39. h4 {[%clk 0:02:01]} 39... Kf6 {[%clk 0:00:11.1]}
40. Bc4 {[%clk 0:02:00.3]} 40... Bc5 {[%clk 0:00:10.6]} 41. Bd3 {[%clk
0:02:00.4]} 41... fxg4+ {[%clk 0:00:09.8]} 42. Kxg4 {[%clk 0:02:00.4]} 42...
Bxe3 {[%clk 0:00:09.9]} 43. Kf3 {[%clk 0:01:57.9]} 43... Bd4 {[%clk 0:00:09.5]}
44. b3 {[%clk 0:01:58.4]} 44... Bc5 {[%clk 0:00:09.9]} 45. Ke4 {[%clk
0:01:59.3]} 45... a5 {[%clk 0:00:09.6]} 46. Kd5 {[%clk 0:01:59.1]} 46... h5
{[%clk 0:00:09.7]} 47. Kc6 {[%clk 0:01:58]} 47... Bf2 {[%clk 0:00:09.7]} 48. a4
{[%clk 0:01:56.4]} 48... Be3 {[%clk 0:00:09.7]} 49. Kb5 {[%clk 0:01:54.6]} 49...
Bc5 {[%clk 0:00:09.1]} 50. Kc4 {[%clk 0:01:54.2]} 50... Bf2 {[%clk 0:00:07.4]}
51. Kb5 {[%clk 0:01:54]} 51... Be3 {[%clk 0:00:07.8]} 52. Be4 {[%clk 0:01:53.8]}
52... Bxf4 {[%clk 0:00:06.2]} 53. Kxb6 {[%clk 0:01:54]} 53... Bd2 {[%clk
0:00:06.7]} 54. Kc5 {[%clk 0:01:54.4]} 54... g5 {[%clk 0:00:06.8]} 55. hxg5+
{[%clk 0:01:55.3]} 55... Kxg5 {[%clk 0:00:07.7]} 56. Kd4 {[%clk 0:01:54.6]}
56... Kf4 {[%clk 0:00:08]} 57. Kd3 {[%clk 0:01:55.1]} 57... Bb4 {[%clk
0:00:08.1]} 58. Bc6 {[%clk 0:01:54.9]} 58... h4 {[%clk 0:00:06.9]} 59. Ke2
{[%clk 0:01:55.4]} 59... Kg3 {[%clk 0:00:07.3]} 60. Kf1 {[%clk 0:01:55.7]} 60...
h3 {[%clk 0:00:07.5]} 61. Bb7 {[%clk 0:01:56.1]} 61... h2 {[%clk 0:00:07.8]} 62.
Ba8 {[%clk 0:01:57]} 62... Kf4 {[%clk 0:00:07.2]} 63. Bb7 {[%clk 0:01:57.9]}
63... Ke3 {[%clk 0:00:06.9]} 64. Kg2 {[%clk 0:01:58.8]} 64... Bd6 {[%clk
0:00:07.1]} 65. Bd5 {[%clk 0:01:59]} 65... Kd4 {[%clk 0:00:07.5]} 66. Bc4 {[%clk
0:01:59.9]} 66... Kc3 {[%clk 0:00:08]} 67. Kh1 {[%clk 0:02:00.8]} 67... Kb4
{[%clk 0:00:07.2]} 68. Bg8 {[%clk 0:02:01.7]} 68... Kc3 {[%clk 0:00:08.1]} 69.
Bf7 {[%clk 0:02:02.6]} 69... Kb4 {[%clk 0:00:09]} 70. Bg8 {[%clk 0:02:03.5]}
70... Kc3 {[%clk 0:00:09.9]} 71. Kg2 {[%clk 0:02:03.8]} 71... Kb4 {[%clk
0:00:10.8]} 72. Bd5 {[%clk 0:02:04]} 72... Kc3 {[%clk 0:00:10.6]} 73. Kf1 {[%clk
0:02:04.1]} 73... Kd4 {[%clk 0:00:08.5]} 74. Bh1 {[%clk 0:02:03.3]} 74... Kc3
{[%clk 0:00:08.3]} 75. Ke2 {[%clk 0:01:59.6]} 75... Kxb3 {[%clk 0:00:08.2]} 76.
Bc6 {[%clk 0:02:00.5]} 76... Kb4 {[%clk 0:00:06.6]} 77. Kd3 {[%clk 0:01:59.7]}
77... Kc5 {[%clk 0:00:06.3]} 78. Ba8 {[%clk 0:01:59.4]} 78... Kb4 {[%clk
0:00:07.2]} 79. Bb7 {[%clk 0:01:59.4]} 79... Bc5 {[%clk 0:00:07.3]} 80. Bc6
{[%clk 0:01:59.3]} 80... Bg1 {[%clk 0:00:08.2]} 81. Ke2 {[%clk 0:01:56]} 81...
Bd4 {[%clk 0:00:07.9]} 82. Kf1 {[%clk 0:01:55.1]} 82... Bc5 {[%clk 0:00:07.6]}
83. Kg2 {[%clk 0:01:54.7]} 83... Bd6 {[%clk 0:00:08.5]} 84. Bb5 {[%clk
0:01:53.9]} 84... Kc5 {[%clk 0:00:09.4]} 85. Kh1 {[%clk 0:01:54.8]} 85... Kd4
{[%clk 0:00:10.2]} 86. Kg2 {[%clk 0:01:55.7]} 86... Kc3 {[%clk 0:00:10.3]} 87.
Kh1 {[%clk 0:01:56.6]} 87... Kb4 {[%clk 0:00:10.9]} 88. Kg2 {[%clk 0:01:57.5]}
88... Kc5 {[%clk 0:00:11.8]} 89. Kh1 {[%clk 0:01:58]} 89... Kb4 {[%clk
0:00:12.7]} 90. Kg2 {[%clk 0:01:58.9]} 1/2-1/2

[Event "*** Titled Tuesday Blitz"]
[Site "Chess.com"]
[Date "2020.11.24"]
[Round "6"]
[White "DrVelja"]
[Black "vinniethepooh"]
[Result "1-0"]
[WhiteElo "2776"]
[BlackElo "2613"]
[TimeControl "180+1"]
[EndTime "11:23:00 PST"]
[Termination "DrVelja won on time"]

1. e4 {[%clk 0:03:00.5]} 1... c5 {[%clk 0:03:00.3]} 2. Nc3 {[%clk 0:02:59.4]}
2... d6 {[%clk 0:03:00.6]} 3. f4 {[%clk 0:02:57.4]} 3... Nc6 {[%clk 0:03:00.1]}
4. Bb5 {[%clk 0:02:54.8]} 4... Bd7 {[%clk 0:02:58.4]} 5. Nf3 {[%clk 0:02:55]}
5... g6 {[%clk 0:02:57.6]} 6. O-O {[%clk 0:02:54.5]} 6... Bg7 {[%clk 0:02:57.3]}
7. d3 {[%clk 0:02:54.7]} 7... a6 {[%clk 0:02:57.2]} 8. Bxc6 {[%clk 0:02:54.7]}
8... Bxc6 {[%clk 0:02:58.1]} 9. Qe1 {[%clk 0:02:55.1]} 9... Qd7 {[%clk
0:02:57.6]} 10. a4 {[%clk 0:02:52.3]} 10... e6 {[%clk 0:02:40.1]} 11. a5 {[%clk
0:02:51.1]} 11... Ne7 {[%clk 0:02:39]} 12. Qh4 {[%clk 0:02:39.2]} 12... h6
{[%clk 0:02:33.7]} 13. Bd2 {[%clk 0:02:15.8]} 13... O-O-O {[%clk 0:02:17.1]} 14.
Qf2 {[%clk 0:02:10.2]} 14... f5 {[%clk 0:02:00.8]} 15. e5 {[%clk 0:01:26.3]}
15... Bxf3 {[%clk 0:01:53.6]} 16. exd6 {[%clk 0:01:20.5]} 16... Bd4 {[%clk
0:01:16.1]} 17. Be3 {[%clk 0:01:19.8]} 17... Nd5 {[%clk 0:01:16.2]} 18. Bxd4
{[%clk 0:01:00.3]} 18... cxd4 {[%clk 0:01:17.1]} 19. Na4 {[%clk 0:00:54.6]}
19... Bh5 {[%clk 0:01:07.9]} 20. c4 {[%clk 0:00:43.8]} 20... dxc3 {[%clk
0:01:08.3]} 21. Qa7 {[%clk 0:00:42.7]} 21... Qxd6 {[%clk 0:01:06]} 22. Rac1
{[%clk 0:00:39.1]} 22... Kd7 {[%clk 0:00:41.2]} 23. Nc5+ {[%clk 0:00:37.2]}
23... Ke7 {[%clk 0:00:37.4]} 24. Rce1 {[%clk 0:00:34.7]} 24... Nc7 {[%clk
0:00:29.2]} 25. bxc3 {[%clk 0:00:33.5]} 25... Ra8 {[%clk 0:00:26.5]} 26. Qb6
{[%clk 0:00:33.4]} 26... Qxb6 {[%clk 0:00:19.8]} 27. axb6 {[%clk 0:00:34.3]}
27... Kd6 {[%clk 0:00:19.3]} 28. d4 {[%clk 0:00:33.7]} 28... Nb5 {[%clk
0:00:12.2]} 29. Rxe6+ {[%clk 0:00:21.7]} 29... Kd5 {[%clk 0:00:12.7]} 30. Rc1
{[%clk 0:00:10.9]} 30... Rac8 {[%clk 0:00:12.8]} 31. c4+ {[%clk 0:00:07]} 31...
Kxd4 {[%clk 0:00:13]} 32. Nb3+ {[%clk 0:00:06.4]} 32... Kd3 {[%clk 0:00:13.5]}
33. cxb5 {[%clk 0:00:06.7]} 33... Rxc1+ {[%clk 0:00:10.5]} 34. Nxc1+ {[%clk
0:00:07.6]} 34... Kc2 {[%clk 0:00:11.2]} 35. bxa6 {[%clk 0:00:06.4]} 35... Kxc1
{[%clk 0:00:11.3]} 36. a7 {[%clk 0:00:04.9]} 36... Bd1 {[%clk 0:00:04.4]} 37.
Re7 {[%clk 0:00:04.6]} 37... Ba4 {[%clk 0:00:03.9]} 38. Rxb7 {[%clk 0:00:04.7]}
38... Kd2 {[%clk 0:00:01.6]} 39. Rb8 {[%clk 0:00:05.1]} 1-0

[Event "*** Titled Tuesday Blitz"]
[Site "Chess.com"]
[Date "2020.11.24"]
[Round "6"]
[White "santosalberto1987"]
[Black "arjwezhrtdrz"]
[Result "0-1"]
[WhiteElo "2439"]
[BlackElo "2328"]
[TimeControl "180+1"]
[EndTime "11:23:00 PST"]
[Termination "arjwezhrtdrz won by resignation"]

1. e4 {[%clk 0:02:39]} 1... e6 {[%clk 0:02:58.1]} 2. d4 {[%clk 0:02:38.3]} 2...
d5 {[%clk 0:02:58.7]} 3. Nc3 {[%clk 0:02:38.1]} 3... dxe4 {[%clk 0:02:57.8]} 4.
Nxe4 {[%clk 0:02:37.6]} 4... Bd7 {[%clk 0:02:58.7]} 5. Nf3 {[%clk 0:02:30.5]}
5... Bc6 {[%clk 0:02:58.9]} 6. Bd3 {[%clk 0:02:31]} 6... Nd7 {[%clk 0:02:59.5]}
7. O-O {[%clk 0:02:28.6]} 7... Ngf6 {[%clk 0:02:59.1]} 8. Nxf6+ {[%clk
0:02:28.8]} 8... Qxf6 {[%clk 0:02:57.8]} 9. c3 {[%clk 0:02:10.3]} 9... Bxf3
{[%clk 0:02:55.1]} 10. Qxf3 {[%clk 0:02:11.2]} 10... Qxf3 {[%clk 0:02:54.9]} 11.
gxf3 {[%clk 0:02:12.1]} 11... c6 {[%clk 0:02:55.1]} 12. Bf4 {[%clk 0:02:09.1]}
12... Nf6 {[%clk 0:02:50.2]} 13. Bg3 {[%clk 0:02:07.6]} 13... O-O-O {[%clk
0:02:48.5]} 14. Bc2 {[%clk 0:02:05.5]} 14... Bd6 {[%clk 0:02:48.3]} 15. Rad1
{[%clk 0:02:04.3]} 15... Nd5 {[%clk 0:02:48.2]} 16. Bb3 {[%clk 0:02:00.8]} 16...
Nf4 {[%clk 0:02:47.9]} 17. Bxf4 {[%clk 0:02:00.9]} 17... Bxf4 {[%clk 0:02:47.7]}
18. Kg2 {[%clk 0:02:01.8]} 18... Kc7 {[%clk 0:02:44.7]} 19. Rfe1 {[%clk
0:02:01.8]} 19... Bg5 {[%clk 0:02:39.2]} 20. Kg3 {[%clk 0:02:00.3]} 20... Bf6
{[%clk 0:02:39.5]} 21. f4 {[%clk 0:01:59.7]} 21... g6 {[%clk 0:02:39]} 22. Kf3
{[%clk 0:01:57.5]} 22... h5 {[%clk 0:02:39]} 23. Bc4 {[%clk 0:01:52.8]} 23...
Rd7 {[%clk 0:02:38.6]} 24. Bb3 {[%clk 0:01:50.1]} 24... Rhd8 {[%clk 0:02:38.4]}
25. Bc2 {[%clk 0:01:49]} 25... b6 {[%clk 0:02:37.6]} 26. Bb3 {[%clk 0:01:48.9]}
26... c5 {[%clk 0:02:28.9]} 27. dxc5 {[%clk 0:01:48.4]} 27... bxc5 {[%clk
0:02:29.8]} 28. Rxd7+ {[%clk 0:01:48.1]} 28... Rxd7 {[%clk 0:02:30.7]} 29. Rd1
{[%clk 0:01:48.2]} 29... Rxd1 {[%clk 0:02:30.3]} 30. Bxd1 {[%clk 0:01:49.1]}
30... a5 {[%clk 0:02:28.8]} 31. Ke4 {[%clk 0:01:47.8]} 31... Kd6 {[%clk
0:02:28.5]} 32. Ba4 {[%clk 0:01:45.1]} 32... Bh4 {[%clk 0:02:21.2]} 33. f3
{[%clk 0:01:42.8]} 33... Be1 {[%clk 0:02:21.1]} 34. Ke3 {[%clk 0:01:37.7]} 34...
Bh4 {[%clk 0:02:12.8]} 35. Bb5 {[%clk 0:01:34.6]} 35... Bf6 {[%clk 0:02:06]} 36.
Ke4 {[%clk 0:01:29.3]} 36... Bg7 {[%clk 0:02:00.7]} 37. Ke3 {[%clk 0:01:28.5]}
37... Ke7 {[%clk 0:01:51.9]} 38. h3 {[%clk 0:01:23.4]} 38... Bh6 {[%clk
0:01:45.1]} 39. Kd3 {[%clk 0:01:11.9]} 39... Bxf4 {[%clk 0:01:43]} 40. Kc4
{[%clk 0:01:12.2]} 40... Kd6 {[%clk 0:01:43.3]} 41. Be8 {[%clk 0:01:11.8]} 41...
Ke7 {[%clk 0:01:35.7]} 42. Bc6 {[%clk 0:01:09.8]} 42... Bc1 {[%clk 0:01:33.4]}
43. b3 {[%clk 0:01:09.7]} 43... Ba3 {[%clk 0:01:21.6]} 44. Kb5 {[%clk
0:01:08.9]} 44... Bb2 {[%clk 0:01:21.4]} 45. Kxa5 {[%clk 0:01:00.7]} 45... Bxc3+
{[%clk 0:01:21]} 46. Kb6 {[%clk 0:01:00.4]} 46... Kd6 {[%clk 0:01:11.6]} 47. a4
{[%clk 0:00:51.6]} 47... g5 {[%clk 0:01:10.4]} 48. Be8 {[%clk 0:00:46.3]} 48...
Ke7 {[%clk 0:01:07.2]} 49. Bc6 {[%clk 0:00:45.5]} 49... Bd4 {[%clk 0:00:58.9]}
50. Kb5 {[%clk 0:00:44.8]} 50... f5 {[%clk 0:00:52.1]} 51. a5 {[%clk 0:00:44.5]}
51... c4 {[%clk 0:00:48.2]} 52. Kxc4 {[%clk 0:00:41.9]} 52... Ba7 {[%clk
0:00:45.8]} 53. b4 {[%clk 0:00:41.6]} 53... Kd6 {[%clk 0:00:45.8]} 54. Be8
{[%clk 0:00:40.9]} 54... g4 {[%clk 0:00:44.4]} 55. hxg4 {[%clk 0:00:34.9]} 55...
h4 {[%clk 0:00:40.7]} 56. b5 {[%clk 0:00:18.9]} 56... h3 {[%clk 0:00:39.7]} 57.
b6 {[%clk 0:00:19.1]} 57... Bxb6 {[%clk 0:00:39.7]} 58. axb6 {[%clk 0:00:18.9]}
58... h2 {[%clk 0:00:39.8]} 0-1

[Event "*** Titled Tuesday Blitz"]
[Site "Chess.com"]
[Date "2020.11.24"]
[Round "6"]
[White "1977Ivan"]
[Black "LPSupi"]
[Result "1-0"]
[WhiteElo "2677"]
[BlackElo "2912"]
[TimeControl "180+1"]
[EndTime "11:23:02 PST"]
[Termination "1977Ivan won on time"]

1. d4 {[%clk 0:03:00.9]} 1... Nf6 {[%clk 0:02:59.3]} 2. Nf3 {[%clk 0:03:00.2]}
2... g6 {[%clk 0:02:59.6]} 3. g3 {[%clk 0:02:57.4]} 3... Bg7 {[%clk 0:02:59.6]}
4. c4 {[%clk 0:02:56.4]} 4... O-O {[%clk 0:03:00.5]} 5. Bg2 {[%clk 0:02:55.8]}
5... d6 {[%clk 0:03:00.7]} 6. Nc3 {[%clk 0:02:55.4]} 6... Nc6 {[%clk 0:02:59.8]}
7. d5 {[%clk 0:02:53.5]} 7... Na5 {[%clk 0:02:56.4]} 8. b3 {[%clk 0:02:53.6]}
8... c5 {[%clk 0:02:29]} 9. Bd2 {[%clk 0:02:52.8]} 9... a6 {[%clk 0:02:23.8]}
10. a4 {[%clk 0:02:51.6]} 10... e6 {[%clk 0:02:18.3]} 11. dxe6 {[%clk 0:02:36]}
11... Bxe6 {[%clk 0:02:08.6]} 12. O-O {[%clk 0:02:20.7]} 12... Re8 {[%clk
0:02:04.5]} 13. Ne1 {[%clk 0:01:58.7]} 13... Bf5 {[%clk 0:01:08.8]} 14. Rc1
{[%clk 0:01:47.3]} 14... Qb6 {[%clk 0:00:59.5]} 15. Nd5 {[%clk 0:01:37.6]} 15...
Nxd5 {[%clk 0:00:54.7]} 16. Bxa5 {[%clk 0:01:33.1]} 16... Qxa5 {[%clk
0:00:54.4]} 17. Bxd5 {[%clk 0:01:32.3]} 17... Rab8 {[%clk 0:00:48.7]} 18. Ng2
{[%clk 0:01:30.1]} 18... Bh6 {[%clk 0:00:41.1]} 19. e3 {[%clk 0:01:28.7]} 19...
Qc7 {[%clk 0:00:36.5]} 20. Qe2 {[%clk 0:01:02.1]} 20... Bd7 {[%clk 0:00:29.6]}
21. Qf3 {[%clk 0:00:50.4]} 21... Rf8 {[%clk 0:00:26.7]} 22. Ra1 {[%clk
0:00:40.2]} 22... Bg7 {[%clk 0:00:24.4]} 23. Ra2 {[%clk 0:00:39.4]} 23... Qa5
{[%clk 0:00:22.7]} 24. Qe2 {[%clk 0:00:28.1]} 24... Qc3 {[%clk 0:00:18.9]} 25.
Qd1 {[%clk 0:00:27.7]} 25... b5 {[%clk 0:00:18.5]} 26. cxb5 {[%clk 0:00:26]}
26... axb5 {[%clk 0:00:19.4]} 27. a5 {[%clk 0:00:26.2]} 27... Rbc8 {[%clk
0:00:10.9]} 28. Nf4 {[%clk 0:00:25.3]} 28... Rc7 {[%clk 0:00:09.3]} 29. a6
{[%clk 0:00:23.2]} 29... Ra7 {[%clk 0:00:08.9]} 30. Bb7 {[%clk 0:00:22.5]} 30...
Qe5 {[%clk 0:00:08.3]} 31. Rd2 {[%clk 0:00:19]} 31... c4 {[%clk 0:00:07]} 32.
bxc4 {[%clk 0:00:18.2]} 32... bxc4 {[%clk 0:00:07.9]} 33. Rd5 {[%clk 0:00:18.4]}
33... Qe7 {[%clk 0:00:06.3]} 34. Rxd6 {[%clk 0:00:17.1]} 34... Bg4 {[%clk
0:00:06.7]} 35. Qd5 {[%clk 0:00:15]} 35... c3 {[%clk 0:00:06.6]} 36. Rc6 {[%clk
0:00:13.1]} 36... Bf5 {[%clk 0:00:04]} 37. Qc4 {[%clk 0:00:09.7]} 37... Qd8
{[%clk 0:00:03]} 38. Rc7 {[%clk 0:00:09.5]} 38... h5 {[%clk 0:00:02.4]} 39. Qc5
{[%clk 0:00:09.7]} 39... Qd2 {[%clk 0:00:02.3]} 40. Qxa7 {[%clk 0:00:08]} 40...
c2 {[%clk 0:00:02.9]} 41. Qc5 {[%clk 0:00:07.8]} 41... Bb2 {[%clk 0:00:01.6]}
42. a7 {[%clk 0:00:07.1]} 42... c1=Q {[%clk 0:00:02.1]} 43. Rxc1 {[%clk
0:00:07.2]} 43... Bxc1 {[%clk 0:00:03]} 44. Qxc1 {[%clk 0:00:07.9]} 44... Qa5
{[%clk 0:00:01.1]} 45. a8=Q {[%clk 0:00:07.2]} 1-0

[Event "*** Titled Tuesday Blitz"]
[Site "Chess.com"]
[Date "2020.11.24"]
[Round "6"]
[White "maxip32"]
[Black "Trovita84"]
[Result "1-0"]
[WhiteElo "2479"]
[BlackElo "2019"]
[TimeControl "180+1"]
[EndTime "11:23:02 PST"]
[Termination "maxip32 won by resignation"]

1. e4 {[%clk 0:03:00.9]} 1... d6 {[%clk 0:02:56]} 2. d4 {[%clk 0:02:57.3]} 2...
Nf6 {[%clk 0:02:54.7]} 3. Nc3 {[%clk 0:02:57]} 3... g6 {[%clk 0:02:51.9]} 4. Be3
{[%clk 0:02:54.6]} 4... Bg7 {[%clk 0:02:41.1]} 5. f3 {[%clk 0:02:50.5]} 5... O-O
{[%clk 0:02:39.1]} 6. Qd2 {[%clk 0:02:50.6]} 6... e5 {[%clk 0:02:38.2]} 7. d5
{[%clk 0:02:49.1]} 7... c6 {[%clk 0:02:38.2]} 8. O-O-O {[%clk 0:02:45]} 8...
cxd5 {[%clk 0:02:37.9]} 9. Nxd5 {[%clk 0:02:44.6]} 9... Nxd5 {[%clk 0:02:37.9]}
10. Qxd5 {[%clk 0:02:45.5]} 10... Be6 {[%clk 0:02:19.6]} 11. Qxd6 {[%clk
0:02:42.7]} 11... Qa5 {[%clk 0:02:20.1]} 12. a3 {[%clk 0:02:39.3]} 12... Nc6
{[%clk 0:02:18.4]} 13. Qc5 {[%clk 0:02:39.3]} 13... Qc7 {[%clk 0:02:12.9]} 14.
Bb5 {[%clk 0:02:37.5]} 14... Rfd8 {[%clk 0:02:12.2]} 15. Ne2 {[%clk 0:02:36.7]}
15... a6 {[%clk 0:02:12.2]} 16. Bxc6 {[%clk 0:02:35.9]} 16... bxc6 {[%clk
0:02:13.1]} 17. Qb6 {[%clk 0:02:35.2]} 17... Rxd1+ {[%clk 0:02:13]} 18. Rxd1
{[%clk 0:02:34.5]} 18... Qxb6 {[%clk 0:02:13.2]} 19. Bxb6 {[%clk 0:02:34.2]}
19... Rb8 {[%clk 0:02:14.1]} 20. Rd8+ {[%clk 0:02:31.3]} 20... Rxd8 {[%clk
0:02:12.5]} 21. Bxd8 {[%clk 0:02:32.2]} 21... f5 {[%clk 0:02:11.2]} 22. Nc3
{[%clk 0:02:29.7]} 22... Bh6+ {[%clk 0:02:09.9]} 23. Kd1 {[%clk 0:02:29.4]}
23... Kf7 {[%clk 0:02:09.8]} 24. Ke2 {[%clk 0:02:29.4]} 24... fxe4 {[%clk
0:02:09.4]} 25. Nxe4 {[%clk 0:02:27.6]} 25... Bd5 {[%clk 0:02:09.4]} 26. Kd3
{[%clk 0:02:27.2]} 26... Ke6 {[%clk 0:02:09.1]} 27. c4 {[%clk 0:02:27.2]} 27...
Bxe4+ {[%clk 0:02:08.5]} 28. Kxe4 {[%clk 0:02:28.1]} 28... Bc1 {[%clk
0:02:07.3]} 29. b3 {[%clk 0:02:20.9]} 29... Bxa3 {[%clk 0:02:06.3]} 30. Bc7
{[%clk 0:02:14.9]} 30... Bd6 {[%clk 0:02:01.3]} 31. Ba5 {[%clk 0:02:07.1]} 31...
Be7 {[%clk 0:01:47.9]} 32. b4 {[%clk 0:02:02.8]} 32... h5 {[%clk 0:01:28.5]} 33.
c5 {[%clk 0:01:59.3]} 33... Bg5 {[%clk 0:01:26.5]} 34. Kd3 {[%clk 0:01:45.3]}
34... Kd5 {[%clk 0:01:25.9]} 35. Bc7 {[%clk 0:01:43.6]} 35... Bf6 {[%clk
0:01:22.3]} 36. Bb8 {[%clk 0:01:42.8]} 36... h4 {[%clk 0:01:17.7]} 37. Bc7
{[%clk 0:01:42]} 37... Bg5 {[%clk 0:01:13.4]} 38. Kc3 {[%clk 0:01:38.6]} 38...
Bf4 {[%clk 0:01:12.7]} 39. h3 {[%clk 0:01:35.7]} 39... g5 {[%clk 0:01:07.6]} 40.
Bd8 {[%clk 0:01:34.5]} 40... e4 {[%clk 0:01:02.8]} 41. Be7 {[%clk 0:01:12.9]}
41... e3 {[%clk 0:00:58]} 42. Kd3 {[%clk 0:01:12.2]} 42... Ke6 {[%clk
0:00:50.6]} 43. Bd8 {[%clk 0:01:06.6]} 43... Kd5 {[%clk 0:00:48.5]} 44. Ba5
{[%clk 0:00:53.4]} 44... Ke6 {[%clk 0:00:45.5]} 45. Bd8 {[%clk 0:00:43.9]} 45...
Kd5 {[%clk 0:00:44.8]} 46. Bf6 {[%clk 0:00:44.1]} 46... Ke6 {[%clk 0:00:41.8]}
47. Bd4 {[%clk 0:00:40.6]} 47... e2 {[%clk 0:00:35]} 48. Kxe2 {[%clk 0:00:40]}
48... Kd5 {[%clk 0:00:31.8]} 49. Kd3 {[%clk 0:00:40.1]} 49... Bg3 {[%clk
0:00:32.4]} 50. Be3 {[%clk 0:00:38.4]} 50... Be1 {[%clk 0:00:30.3]} 51. Bxg5
{[%clk 0:00:34.1]} 51... Bxb4 {[%clk 0:00:30.5]} 52. Bxh4 {[%clk 0:00:34.5]}
52... Bxc5 {[%clk 0:00:29.8]} 53. Be1 {[%clk 0:00:33.7]} 53... Be7 {[%clk
0:00:27.5]} 54. g4 {[%clk 0:00:33.1]} 54... c5 {[%clk 0:00:27.9]} 55. Bc3 {[%clk
0:00:31.6]} 55... c4+ {[%clk 0:00:28.8]} 56. Ke3 {[%clk 0:00:31.1]} 56... Bc5+
{[%clk 0:00:23.4]} 57. Ke2 {[%clk 0:00:31]} 57... Bd4 {[%clk 0:00:21]} 58. Ba5
{[%clk 0:00:16.3]} 58... c3 {[%clk 0:00:20.6]} 59. Kd3 {[%clk 0:00:16.3]} 1-0

[Event "*** Titled Tuesday Blitz"]
[Site "Chess.com"]
[Date "2020.11.24"]
[Round "6"]
[White "vanyakuba"]
[Black "DenishevM"]
[Result "0-1"]
[WhiteElo "2476"]
[BlackElo "2604"]
[TimeControl "180+1"]
[EndTime "11:23:03 PST"]
[Termination "DenishevM won by resignation"]

1. e4 {[%clk 0:03:00.9]} 1... g6 {[%clk 0:02:57.1]} 2. d4 {[%clk 0:03:00.6]}
2... Bg7 {[%clk 0:02:58]} 3. Nc3 {[%clk 0:03:01]} 3... a6 {[%clk 0:02:57.4]} 4.
a4 {[%clk 0:03:00.2]} 4... d6 {[%clk 0:02:57.3]} 5. g3 {[%clk 0:03:00.4]} 5...
b6 {[%clk 0:02:55.3]} 6. Bg2 {[%clk 0:03:00.5]} 6... Bb7 {[%clk 0:02:56]} 7.
Nge2 {[%clk 0:03:00.9]} 7... e6 {[%clk 0:02:54.9]} 8. h3 {[%clk 0:02:57.6]} 8...
Ne7 {[%clk 0:02:55.2]} 9. O-O {[%clk 0:02:57.1]} 9... O-O {[%clk 0:02:55.8]} 10.
Kh2 {[%clk 0:02:47.3]} 10... Nd7 {[%clk 0:02:55.3]} 11. Be3 {[%clk 0:02:43.5]}
11... c5 {[%clk 0:02:51.8]} 12. Qd2 {[%clk 0:02:40.9]} 12... Qc7 {[%clk
0:02:50.9]} 13. f4 {[%clk 0:02:39.6]} 13... Nc6 {[%clk 0:02:27.4]} 14. d5 {[%clk
0:02:27.8]} 14... exd5 {[%clk 0:02:27.1]} 15. Nxd5 {[%clk 0:02:27.6]} 15... Qd8
{[%clk 0:02:27.7]} 16. Rad1 {[%clk 0:01:54.1]} 16... Re8 {[%clk 0:02:26.3]} 17.
Ndc3 {[%clk 0:01:42.1]} 17... Bf8 {[%clk 0:02:24.4]} 18. e5 {[%clk 0:01:41]}
18... Rb8 {[%clk 0:01:12.3]} 19. Bf2 {[%clk 0:01:36.1]} 19... Re7 {[%clk
0:00:38.9]} 20. exd6 {[%clk 0:01:18.5]} 20... Re6 {[%clk 0:00:38.4]} 21. Ne4
{[%clk 0:00:40.1]} 21... Nf6 {[%clk 0:00:21.2]} 22. N2c3 {[%clk 0:00:36]} 22...
h6 {[%clk 0:00:11.7]} 23. Nxf6+ {[%clk 0:00:26.8]} 23... Qxf6 {[%clk 0:00:12.5]}
24. d7 {[%clk 0:00:25.4]} 24... Rd8 {[%clk 0:00:11.5]} 25. Nd5 {[%clk
0:00:22.8]} 25... Qxb2 {[%clk 0:00:09.9]} 26. Rb1 {[%clk 0:00:22]} 26... Qa3
{[%clk 0:00:07]} 27. Rb3 {[%clk 0:00:17.3]} 27... Qxa4 {[%clk 0:00:02.2]} 28.
Nxb6 {[%clk 0:00:17.5]} 28... Qa2 {[%clk 0:00:02.3]} 29. Nd5 {[%clk 0:00:07.5]}
29... Ba8 {[%clk 0:00:01.6]} 30. Nb6 {[%clk 0:00:05.7]} 30... Rd6 {[%clk
0:00:02.1]} 31. Rd3 {[%clk 0:00:05.1]} 31... Nd4 {[%clk 0:00:02.6]} 32. Nxa8
{[%clk 0:00:04.4]} 32... R6xd7 {[%clk 0:00:03.1]} 33. c3 {[%clk 0:00:04.5]}
33... Qxd2 {[%clk 0:00:02.6]} 34. Rxd2 {[%clk 0:00:04.6]} 34... Nf3+ {[%clk
0:00:03.1]} 35. Bxf3 {[%clk 0:00:04.9]} 35... Rxd2 {[%clk 0:00:04]} 36. Nb6
{[%clk 0:00:05.3]} 36... Rb8 {[%clk 0:00:04.5]} 37. Nd5 {[%clk 0:00:05.1]} 37...
Rbb2 {[%clk 0:00:04.3]} 38. Kg2 {[%clk 0:00:04.9]} 38... a5 {[%clk 0:00:04.8]}
39. Rd1 {[%clk 0:00:04.3]} 39... Rxf2+ {[%clk 0:00:04.1]} 40. Kh1 {[%clk
0:00:03.3]} 40... Rxf3 {[%clk 0:00:04.9]} 0-1